{"text_format":"1","workbook":"xlsx","n_sheets":1,"sheets":["SEEH Rekenmodel"],"not_rendered":{"charts":0,"images":16,"macros":1,"external_links":0,"defined_names":0,"comments":0,"pivot_tables":0},"unopened":[],"bounds":{"document_bytes":16777216,"sheet_cells":100000,"rows_first":2000,"rows_last":500,"rows_between":2000,"halvings":0,"cell_chars":16384,"cell_head_chars":4096},"cells_cut":0,"cells_raw":0,"read":"whole","date_system":"1900"}

{"sheet":"SEEH Rekenmodel","index":0,"n_rows":73,"n_cols":11,"rows_kept":73,"cut":false,"hidden":false,"merged":[[72,1,72,5],[0,0,0,6],[63,0,71,6],[5,3,5,6],[2,0,2,1],[3,0,3,1],[4,0,4,1],[5,0,5,1],[1,3,1,6],[2,3,2,6],[3,3,3,6],[4,3,4,6],[6,3,6,6],[45,2,47,2]]}
[]
["Aanvrager",null,"[A]","Vereniging"]
["Variant",null,"[B]","Energiebesparende maatregelen",null,null,null,null,{"$f":"LEFT(D3,2)","v":"En"}]
["Aantal appartementen gehele gebouw?",null,"[C]"]
["Wat is percentage aandeel appartements- of woonrechten in de vereniging van de leden die eigenaar-bewoner zijn in het gebouw? ",null,"[D]",null,null,null,null,null,{"$f":"D5","v":0}]
["Aantal Koopwoningen wat bewoond wordt door de eigenaar",null,"[E]"]
["Type woning","Totale Subsidie",null,"Gebouw"]
[null,"Selecteer de te nemen energiebesparende maatregelen: minimaal 2","Bedrag/m²","Minimum \nm²","m²","Gehele Gebouw","Bedrag",null,null,null,"artikel 14"]
[null,"Spouwmuurisolatie min Rd 1,1[m²K/w]",5,{"$f":"IF(AND($I$3=\"Nee\",F9=\"Nee\"),D4*get_minimum2(\"spouw\",$D$7),\"\")","v":""},null,"Ja",{"$f":"IF(I9=TRUE,bereken_subsidie_regel(C9,D9,E9,F9),\"\")","v":0},null,true,null,"a"]
[null,"Gevelisolatie: ten minste Rd 3,5 [m²K/W]",25,{"$f":"IF(F10=\"Nee\",D4*get_minimum2(\"gevel\",$D$7),\"\")","v":""},null,"Ja",{"$f":"IF(I10=TRUE,bereken_subsidie_regel(C10,D10,E10,F10),\"\")","v":0},null,true,null,"b"]
[null,"Dakisolatie: ten minste Rd 3,5 [m²K/W]",15,{"$f":"IF(F11=\"Nee\",D4*get_minimum2(\"dak\",$D$7),\"\")","v":""},null,"Ja",{"$f":"IF(I11=TRUE,bereken_subsidie_regel(C11,D11,E11,F11),\"\")","v":0},null,true,null,"c"]
[null,"Zolder of vlieringvloerisolatie Rd 3,5",5,{"$f":"IF(F12=\"Nee\",D4*get_minimum2(\"vloer\",$D$7),\"\")","v":""},null,"Ja",{"$f":"IF(I12=TRUE,bereken_subsidie_regel(C12,D12,E12,F12),\"\")","v":""},null,false,null,"d"]
[null,"Vloerisolatie: ten minste Rd 3,5 [m²K/W]",5,{"$f":"IF(F13=\"Nee\",D4*get_minimum2(\"vloer\",$D$7),\"\")","v":""},null,"Ja",{"$f":"IF(I13=TRUE,bereken_subsidie_regel(C13,D13,E13,F13),\"\")","v":""},null,false,null,"e"]
[null,"Bodemisolatie eventueel in combinatie met vloerisolatie: ten minste Rd 3,5 [m²K/W]",4,{"$f":"IF(F14=\"Nee\",D4*get_minimum2(\"vloer\",$D$7),\"\")","v":""},null,"Ja",{"$f":"IF(I14=TRUE,bereken_subsidie_regel(C14,D14,E14,F14),\"\")","v":0},null,true,null,"f"]
[null,{"$f":"IF(I$3=\"Ja\",\"HR++ glas: ten hoogste  U 0,8 [W/m²K]\",\"HR++ glas: ten hoogste  U 1,2 [W/m²K] \")","v":"HR++ glas: ten hoogste  U 1,2 [W/m²K] "},35,{"$f":"IF(F15=\"Nee\",D4*get_minimum2(\"glas\",$D$7),\"\")","v":""},null,"Ja",{"$f":"IF(I15=TRUE,bereken_subsidie_regel(C15,D15,E15,F15),\"\")","v":0},null,true,null,"g"]
[null,{"$f":"IF(I$3=\"Ja\",\"Triple-glas: ten hoogste U  0,8 [W/m²K]\",\"Triple-glas: ten hoogste U  0,8 [W/m²K]\")","v":"Triple-glas: ten hoogste U  0,8 [W/m²K]"},45,{"$f":"IF(F16=\"Nee\",D4*get_minimum2(\"glas\",$D$7),\"\")","v":""},null,"Ja",{"$f":"IF(I16=TRUE,bereken_subsidie_regel(C16,D16,E16,F16),\"\")","v":0},null,true,null,"h"]
[]
[null,"Energie besparende maatregelen","Bedrag/m²",null,"m²","Gehele\nGebouw","Bedrag",null,null,null,"artikel 6 lid 2"]
[null,"Dakisolatie: ten minste Rc 6,5 [m²K/W]",15,null,null,"Ja",{"$f":"IF(I19=TRUE,bereken_subsidie_regel(C19,D19,E19,F19),\"\")","v":0},null,true]
[null,"Gevelisolatie: ten minste Rc 5,0 [m²K/W]",25,null,null,"Ja",{"$f":"IF(I20=TRUE,bereken_subsidie_regel(C20,D20,E20,F20),\"\")","v":0},null,true]
[null,"Vloerisolatie: ten minste Rc 4,0 [m²K/W]",5,null,null,"Ja",{"$f":"IF(I21=TRUE,bereken_subsidie_regel(C21,D21,E21,F21),\"\")","v":0},null,true]
[null,{"$f":"IF(I$3=\"Ja\",\"Triple-glas: ten hoogste U  0,8 [W/m²K]\",\"Triple-glas: ten hoogste U  0,8 [W/m²K]\")","v":"Triple-glas: ten hoogste U  0,8 [W/m²K]"},45,null,null,"Ja",{"$f":"IF(I22=TRUE,bereken_subsidie_regel(C22,D22,E22,F22),\"\")","v":0},null,true]
[]
[null,"Subtotaal energiebesparende maatregelen :",null,null,null,"[F]",{"$f":"IF(I$3=\"Ze\",bereken_ebm_zep(G19:G22),bereken_ebm(G9:G16))","v":""}]
[]
[null,"Aanvullende energiebesparende maatregelen","Bedrag","Eenheid","Aantal",null,"Bedrag",null,null,null,"artikel 5"]
[null,{"$f":"IF($I$3=\"Ja\",\"Het vervangen van een deur in de gevel door een isolerende deur met een maximale U-waarde van 1,5 [W/m²K];\",\"Het vervangen van een deur in de gevel door een isolerende deur met een maximale U-waarde van 2,0 [W/m²K];\")","v":"Het vervangen van een deur in de gevel door een isolerende deur met een maximale U-waarde van 2,0 [W/m²K];"},100,"m²",null,null,{"$f":"IF(AND(I27=TRUE,G$24<>\"\"),E27*C27,0)","v":0},null,false,null,"a "]
[null,"Bij het voor de eerste keer toepassen van triple-glas: het vervangen van een kozijn door een isolerend kozijn met een maximale U-waarde van [1,5W/m2K];",45,"m2",null,null,{"$f":"IF(AND(I28=TRUE,G$24<>\"\"),E28*C28,0)","v":0},null,false,null,"b"]
[null,"Het voor de eerste keer aanleggen van een systeem voor CO2-gestuurde ventilatie of een systeem voor balansventilatie met wtw met een rendement van ten minste 90%;",800,"Stuks",null,null,0,null,false,null,"c"]
[null,"Het voor de eerste keer aanleggen van een systeem voor balansventilatie met wtw met een rendement van ten minste 90%;",800,"Stuks",null,null,0,null,false,null,"d"]
[null,"Het voor de eerste keer aanleggen van een verticaal systeem om douchewater voor te verwarmen met afvalwater (douchepijp wtw), met een rendement van ten minste 45%;",140,"Stuks",null,null,0,null,false,null,"e"]
[null,"Het voor de eerste keer aanleggen van een systeem om douchewater voor te verwarmen met afvalwater (douchegoot wtw of douchebak wtw) met een rendement van ten minste 45%, en",300,"Stuks",null,null,0,null,false,null,"f"]
[null,"Het waterzijdig inregelen van het verwarmingssysteem.",60,"Stuks",null,null,0,null,false,null,"g"]
[null,"Energiedisplay of slimme thermostaat",100,"Stuks",null,null,0,null,false,null,"h"]
[]
[null,"Subtotaal aanvullende maatregelen :",null,null,null,"[G]",{"$f":"SUM(G27:G34)","v":0}]
[]
[null,"Subsidiabele kosten energiebesparende maatregelen ([H]=[D]*([F]+[G]))",null,null,null,"[H]",{"$f":"IF($G$24<>\"\",D5*(G36+G24),\"\")","v":""}]
[]
[null,"Sprake van energieprestatiegarantie: ja/nee"]
[null,"Afsluitkosten(inclusief BTW):"]
[null,"Subsidie energieprestatiegarantie [I]. \n50% van de afsluitkosten\nMaximaal €200 per koopwoning",null,null,null,"[I]",{"$f":"IF((0.5*C41)>$D$6*200,$D$6*200,0.5*C41)","v":0}]
[]
[null,"Bonus zeer energiezuinig pakket [J] = D*€4000",null,null,null,"[J]",{"$f":"IF(AND(I3=\"Ze\",$G$24<>\"\",I44=TRUE),4000*$D$6,\"\")","v":""},null,{"$f":"zep_ok(G19,G20,G21,G22,G27,G28,G29)","v":false}]
[]
[null,"Energieadvies \n75% van de kosten,\ntot 2 koopwoningen maximaal €200.\ntot 4 koopwoningen maximaal €400.\ndaarboven €80 per extra koopwoning, maximaal €2480",null,null,null,null,null,null,false]
[null,"Energieadvies en Procesbegeleiding\n75% van de kosten, \ntot 2 koopwoningen maximaal €500.\ntot 4 koopwoningen maximaal €1000.\ndaarboven €100 per extra koopwoning, maximaal €3600",null,null,null,null,null,null,false]
[null,"Energieadvies, Procesbegeleiding en MJOP \n75% van de kosten,\ntot 2 koopwoningen maximaal €750.\ntot 4 koopwoningen maximaal €1500. \ndaarboven €150 per extra koopwoning, maximaal €5400.",null,null,null,null,null,null,false]
[]
[null,null,null,null,null,"[J]",{"$f":"bereken_advies_bedrag(I46,I47,I48,C46,D6)","v":0}]
[]
[null,"Totale Subsidie [H]+[I]+[J]",null,null,null,null,{"$f":"IF(SUM(G50,G44,G42,G38)>2500000,2500000,SUM(G50,G44,G42,G38))","v":0}]
[]
[null,"Sprake van maatwerkadviesrapport: ja/nee","Nee",null,null,null,{"$f":"IF(AND(C54=\"Ja\",$G$18<>\"\"),150,\"\")","v":""}]
[]
[null,"Sprake van energieprestatiegarantie: ja/nee","Ja"]
[null,"Afsluitkosten(inclusief BTW):"]
[null,"Subsidie energieprestatiegarantie. \n50% van de afsluitkosten\nMaximaal €200 per koopwoning",null,null,null,null,{"$f":"IF(G38<>\"\",IF((0.5*C57)>$D$6*200,$D$6*200,0.5*C57),\"\")","v":""}]
[]
[null,"Bonus zeer energiezuinig pakket  = €4000",null,null,null,null,{"$f":"IF(AND(I3=\"Ja\",$G$24<>\"\",I60=TRUE),4000*$D$6,\"\")","v":""},null,{"$f":"zep_ok(G19,G20,G21,G22,G27,G28,G29)","v":false}]
[]
[null,"Totale subsidie: F + G + H + I",null,null,null,null,{"$f":"IF(G38<>\"\",SUM(G38,G54,G58,G60),\"\")","v":""}]
[]
["Disclaimer\nDe berekening Subsidie Energiebesparing Eigen Huis is uitsluitend bedoeld ter informatie en is gebaseerd op subsidie bedragen zoals opgenomen in de Subsidieregeling Energiebesparing Eigen Huis.\nAan de uitkomsten van deze berekening kunnen geen rechten worden ontleend. Hoewel de berekeningstool met grote zorg is ontwikkeld, aanvaardt RVO.nl geen enkele aansprakelijkheid voor eventuele fouten.  \nDe uitkomst van de berekening is ook niet aan te merken als een aanvraag voor subsidie. Het aanvragen van subsidie kan vanaf 15 september 2016 via de website.”\n"]
[]
[]
[]
[]
[]
[]
[]
[]
["Meer informatie:","http://www.rvo.nl/subsidies-regelingen/subsidie-energiebesparing-eigen-huis ",null,null,null,null,"versie: 1.32"]